fUSD/lending_fUSD_20250809
["ID","MTS","AMOUNT","RATE_DAILY","PERIOD"]
[378154624,1754751037131,-400.0,0.00024657,2]
[378154625,1754751037142,-566.24,0.00024657,2]
[378154626,1754751037151,-400.0,0.00024657,2]
[378154627,1754751037160,-400.0,0.00024657,2]
[378154628,1754751037170,-400.0,0.00024657,2]
[378154629,1754751037179,-400.0,0.00024657,2]
[378154630,1754751037188,-400.0,0.00024657,2]
[378154631,1754751037198,-400.0,0.00024657,2]
[378154632,1754751037208,-1050.66,0.00024657,2]
[378154633,1754751037217,-400.0,0.00024657,2]
[378154634,1754751037227,-400.0,0.00024657,2]
[378154635,1754751037236,-428.61,0.00024657,2]
[378154636,1754751037245,-400.0,0.00024657,2]
[378154637,1754751037254,-562.08,0.00024657,2]
[378154638,1754751037264,-430.29968112,0.00024657,2]
[378154639,1754751037273,-400.0,0.00024657,2]
[378154640,1754751037282,-400.0,0.00024657,2]
[378154641,1754751037292,-400.0,0.00024657,2]
[378154642,1754751037301,-400.0,0.00024657,2]
[378154643,1754751037311,-445.5,0.00024657,2]
[378154644,1754751037320,-400.0,0.00024657,2]
[378154645,1754751037330,-252.45043819,0.00024657,2]
[378154646,1754751037339,-400.0,0.00024657,2]
[378154647,1754751037348,-550.0,0.00024657,2]
[378154648,1754751037357,-400.0,0.00024657,2]
[378154649,1754751037366,-400.0,0.00024657,2]
[378154650,1754751037376,-400.0,0.00024657,2]
[378154651,1754751037385,-400.0,0.00024657,2]
[378154652,1754751037394,-400.0,0.00024657,2]
[378154653,1754751037403,-629.35,0.00024657,2]
[378154654,1754751037413,-400.0,0.00024657,2]
[378154655,1754751037423,-446.22,0.00024657,2]
[378154656,1754751037432,-400.0,0.00024657,2]
[378154657,1754751037441,-400.0,0.00024657,2]
[378154658,1754751037450,-487.78,0.00024657,2]
[378154659,1754751037459,-400.0,0.00024657,2]
[378154660,1754751037468,-400.0,0.00024657,2]
[378154661,1754751037477,-188.09767551,0.00024657,2]
[378154662,1754751037486,-400.0,0.00024657,2]
[378154663,1754751037495,-400.0,0.00024657,2]
[378154664,1754751037504,-400.0,0.00024657,2]
[378154665,1754751037513,-402.55000991,0.00024657,2]
[378154666,1754751037522,-400.0,0.00024657,2]
[378154667,1754751037531,-400.0,0.00024657,2]
[378154668,1754751037540,-400.0,0.00024657,2]
[378154669,1754751037549,-518.59,0.00024657,2]
[378154670,1754751037559,-400.0,0.00024657,2]
[378154671,1754751037568,-400.0,0.00024657,2]
[378154672,1754751037578,-400.0,0.00024657,2]
[378154673,1754751037587,-400.0,0.00024657,2]
[378154674,1754751037597,-432.72,0.00024657,2]
[378154675,1754751037608,-269.89195188,0.00024657,2]
[378154676,1754751037617,-400.0,0.00024657,2]
[378154677,1754751037631,-400.0,0.00024657,2]
[378154678,1754751037641,-400.0,0.00024657,2]
[378154679,1754751037652,-540.54,0.00024657,2]
[378154680,1754751037662,-400.0,0.00024657,2]
[378154681,1754751037673,-1173.43,0.00024657,2]
[378154682,1754751037682,-400.0,0.00024657,2]
[378154683,1754751037692,-400.0,0.00024657,2]
[378154684,1754751037702,-400.0,0.00024657,2]
[378154685,1754751037711,-400.0,0.00024657,2]
[378154686,1754751037722,-400.0,0.00024657,2]
[378154687,1754751037734,-400.0,0.00024657,2]
[378154688,1754751037744,-400.0,0.00024657,2]
[378154689,1754751037754,-400.0,0.00024657,2]
[378154690,1754751037763,-400.0,0.00024657,2]
[378154691,1754751037773,-400.0,0.00024657,2]
[378154692,1754751037782,-500.0,0.00024657,2]
[378154693,1754751037791,-400.0,0.00024657,2]
[378154694,1754751037801,-400.0,0.00024657,2]
[378154695,1754751037811,-400.0,0.00024657,2]
[378154696,1754751037821,-894.92,0.00024657,2]
[378154697,1754751037831,-400.0,0.00024657,2]
[378154698,1754751037840,-400.0,0.00024657,2]
[378154700,1754751037850,-309.52,0.00024657,2]
[378154701,1754751037859,-400.0,0.00024657,2]
[378154702,1754751037869,-400.0,0.00024657,2]
[378154703,1754751037878,-400.0,0.00024657,2]
[378154704,1754751037888,-400.0,0.00024657,2]
[378154705,1754751037897,-400.0,0.00024657,2]
[378154706,1754751037907,-400.0,0.00024657,2]
[378154707,1754751037918,-400.0,0.00024657,2]
[378154708,1754751037928,-500.0,0.00024657,2]
[378154709,1754751037938,-493.47,0.00024657,2]
[378154710,1754751037948,-562.58,0.00024657,2]
[378154711,1754751037959,-268.85474945,0.00024657,2]
[378154712,1754751037968,-2203.04,0.00024657,2]
[378154713,1754751037978,-400.0,0.00024657,2]
[378154714,1754751037987,-400.0,0.00024657,2]
[378154715,1754751037997,-400.0,0.00024657,2]
[378154716,1754751038008,-397.30573475,0.00024657,2]
[378154717,1754751038018,-616.34,0.00024657,2]
[378154718,1754751038028,-439.36,0.00024657,2]
[378154719,1754751038038,-400.0,0.00024657,2]
[378154720,1754751038047,-400.0,0.00024657,2]
[378154721,1754751038056,-400.0,0.00024657,2]
[378154722,1754751038066,-400.0,0.00024657,2]
[378154723,1754751038075,-185.07903988,0.00024657,2]
[378154724,1754751038085,-400.0,0.00024657,2]
[378154725,1754751038095,-400.0,0.00024657,2]
[378154726,1754751038105,-326.84287608,0.00024657,2]
[378154727,1754751038115,-562.02,0.00024657,2]
[378154728,1754751038125,-4328.72,0.00024657,2]
[378154729,1754751038135,-427.72,0.00024657,2]
[378154730,1754751038144,-400.0,0.00024657,2]
[378154731,1754751038154,-400.0,0.00024657,2]
[378154732,1754751038166,-400.0,0.00024657,2]
[378154733,1754751038176,-376.67060908,0.00024657,2]
[378154734,1754751038186,-310.79360839,0.00024657,2]
[378154735,1754751038196,-428.99,0.00024657,2]
[378154736,1754751038205,-400.0,0.00024657,2]
[378154737,1754751038215,-542.21,0.00024657,2]
[378154738,1754751038224,-400.0,0.00024657,2]
[378154739,1754751038234,-400.0,0.00024657,2]
[378154740,1754751038243,-400.0,0.00024657,2]
[378154741,1754751038253,-400.0,0.00024657,2]
[378154742,1754751038263,-400.0,0.00024657,2]
[378154743,1754751038272,-400.0,0.00024657,2]
[378154744,1754751038282,-400.0,0.00024657,2]
[378154745,1754751038291,-400.0,0.00024657,2]
[378154747,1754751038301,-459.35,0.00024657,2]
[378154748,1754751038311,-473.07,0.00024657,2]
[378154749,1754751038321,-400.0,0.00024657,2]
[378154750,1754751038331,-400.0,0.00024657,2]
[378154751,1754751038341,-687.95,0.00024657,2]
[378154752,1754751038351,-400.0,0.00024657,2]
[378154753,1754751038360,-400.0,0.00024657,2]
[378154754,1754751038369,-400.0,0.00024657,2]
[378154755,1754751038379,-559.72,0.00024657,2]
[378154756,1754751038388,-400.0,0.00024657,2]
[378154757,1754751038398,-400.0,0.00024657,2]
[378154758,1754751038408,-400.0,0.00024657,2]
[378154759,1754751038420,-477.82,0.00024657,2]
[378154760,1754751038429,-470.87,0.00024657,2]
[378154761,1754751038438,-400.0,0.00024657,2]
[378154762,1754751038448,-400.0,0.00024657,2]
[378154763,1754751038458,-493.2,0.00024657,2]
[378154764,1754751038468,-567.4,0.00024657,2]
[378154765,1754751038478,-400.0,0.00024657,2]
[378154767,1754751038488,-560.12,0.00024657,2]
[378154769,1754751038498,-400.0,0.00024657,2]
[378154770,1754751038508,-400.0,0.00024657,2]
[378154772,1754751038517,-400.0,0.00024657,2]
[378154774,1754751038527,-400.0,0.00024657,2]
[378154776,1754751038536,-553.92,0.00024657,2]
[378154778,1754751038545,-431.31,0.00024657,2]
[378154779,1754751038555,-411.45,0.00024657,2]
[378154781,1754751038566,-400.0,0.00024657,2]
[378154783,1754751038583,-400.0,0.00024657,2]
[378154786,1754751038592,-233.09769084,0.00024657,2]
[378154788,1754751038602,-689.0,0.00024657,2]
[378154790,1754751038612,-400.0,0.00024657,2]
[378154791,1754751038621,-637.96,0.00024657,2]
[378154793,1754751038635,-400.0,0.00024657,2]
[378154795,1754751038645,-400.0,0.00024657,2]
[378154797,1754751038655,-400.0,0.00024657,2]
[378154799,1754751038667,-814.53,0.00024657,2]
[378154801,1754751038676,-840.68,0.00024657,2]
[378154802,1754751038686,-400.0,0.00024657,2]
[378154804,1754751038695,-400.0,0.00024657,2]
[378154806,1754751038705,-400.0,0.00024657,2]
[378154808,1754751038714,-481.78,0.00024657,2]
[378154809,1754751038723,-194.41,0.00024657,2]
[378154811,1754751038733,-461.09,0.00024657,2]
[378154813,1754751038744,-400.0,0.00024657,2]
[378154832,1754751038754,-546.73,0.00024657,2]
[378154835,1754751038971,-400.0,0.00024657,2]
[378154836,1754751038981,-160.99262378,0.00024657,2]
[378154838,1754751038990,-511.71383169,0.00024657,2]
[378154840,1754751039000,-400.0,0.00024657,2]
[378154842,1754751039009,-400.0,0.00024657,2]
[378154843,1754751039018,-455.24,0.00024657,2]
[378154845,1754751039028,-475.8,0.00024657,2]
[378154847,1754751039038,-400.0,0.00024657,2]
[378154849,1754751039048,-650.92,0.00024657,2]
[378154851,1754751039058,-737.63,0.00024657,2]
[378154853,1754751039067,-1000.0,0.00024657,2]
[378154855,1754751039077,-400.0,0.00024657,2]
[378154857,1754751039086,-400.0,0.00024657,2]
[378154859,1754751039095,-400.0,0.00024657,2]
[378154861,1754751039105,-1658.64,0.00024657,2]
[378154862,1754751039114,-400.0,0.00024657,2]
[378154864,1754751039123,-402.64026207,0.00024657,2]
[378154865,1754751039133,-400.0,0.00024657,2]
[378154867,1754751039143,-400.0,0.00024657,2]
[378154869,1754751039152,-459.12,0.00024657,2]
[378154871,1754751039163,-313.19,0.00024657,2]
[378154873,1754751039173,-400.0,0.00024657,2]
[378154875,1754751039182,-400.0,0.00024657,2]
[378154877,1754751039191,-667.71,0.00024657,2]
[378154879,1754751039201,-539.7,0.00024657,2]
[378154881,1754751039210,-400.0,0.00024657,2]
[378154883,1754751039219,-400.0,0.00024657,2]
[378154884,1754751039229,-770.91,0.00024657,2]
[378154886,1754751039238,-473.62,0.00024657,2]
[378154888,1754751039248,-400.0,0.00024657,2]
[378154890,1754751039257,-400.0,0.00024657,2]
[378154892,1754751039266,-400.0,0.00024657,2]
[378154894,1754751039276,-400.0,0.00024657,2]
[378154895,1754751039285,-400.0,0.00024657,2]
[378154897,1754751039294,-748.68,0.00024657,2]
[378154899,1754751039303,-382.67688617,0.00024657,2]
[378154901,1754751039313,-870.99,0.00024657,2]
[378154903,1754751039322,-528.64,0.00024657,2]
[378154905,1754751039332,-400.0,0.00024657,2]
[378154906,1754751039342,-400.0,0.00024657,2]
[378154908,1754751039351,-400.0,0.00024657,2]
[378154910,1754751039361,-400.0,0.00024657,2]
[378154912,1754751039370,-400.0,0.00024657,2]
[378154914,1754751039380,-2206.46,0.00024657,2]
[378154916,1754751039389,-237.23,0.00024657,2]
[378154918,1754751039399,-400.0,0.00024657,2]
[378154920,1754751039409,-400.0,0.00024657,2]
[378154922,1754751039420,-400.0,0.00024657,2]
[378154924,1754751039429,-400.0,0.00024657,2]
[378154925,1754751039438,-798.04,0.00024657,2]
[378154927,1754751039448,-400.0,0.00024657,2]
[378154929,1754751039457,-399.02598332,0.00024657,2]
[378154931,1754751039467,-400.0,0.00024657,2]
[378154933,1754751039476,-400.0,0.00024657,2]
[378154935,1754751039486,-282.53,0.00024657,2]
[378154937,1754751039497,-400.0,0.00024657,2]
[378154939,1754751039507,-400.0,0.00024657,2]
[378154941,1754751039516,-400.0,0.00024657,2]
[378154943,1754751039526,-400.0,0.00024657,2]
[378154944,1754751039536,-671.59,0.00024657,2]
[378154946,1754751039546,-455.31,0.00024657,2]
[378154948,1754751039556,-718.81,0.00024657,2]
[378154950,1754751039566,-400.0,0.00024657,2]
[378154952,1754751039576,-400.0,0.00024657,2]
[378154954,1754751039586,-453.57,0.00024657,2]
[378154956,1754751039595,-764.28,0.00024657,2]
[378154958,1754751039604,-719.4,0.00024657,2]
[378154960,1754751039614,-400.0,0.00024657,2]
[378154961,1754751039624,-448.15,0.00024657,2]
[378154963,1754751039637,-400.0,0.00024657,2]
[378154965,1754751039647,-400.0,0.00024657,2]
[378154967,1754751039656,-400.0,0.00024657,2]
[378154969,1754751039668,-503.63730389,0.00024657,2]
[378154971,1754751039679,-640.54,0.00024657,2]
[378154973,1754751039688,-408.78739207,0.00024657,2]
[378154975,1754751039698,-415.25,0.00024657,2]
[378154977,1754751039709,-400.0,0.00024657,2]
[378154979,1754751039719,-400.0,0.00024657,2]
[378154981,1754751039729,-400.0,0.00024657,2]
[378154983,1754751039739,-400.0,0.00024657,2]
[378154985,1754751039749,-972.24,0.00024657,2]
[378154987,1754751039759,-400.0,0.00024657,2]
[378154988,1754751039768,-400.0,0.00024657,2]
[378154990,1754751039778,-400.0,0.00024657,2]
[378154992,1754751039788,-400.0,0.00024657,2]
[378154994,1754751039797,-400.0,0.00024657,2]
[378154996,1754751039807,-495.79860875,0.00024657,2]
[378154998,1754751039817,-478.75,0.00024657,2]
[378155000,1754751039826,-546.34,0.00024657,2]
[378155002,1754751039835,-400.0,0.00024657,2]
[378155004,1754751039845,-400.0,0.00024657,2]
[378155006,1754751039855,-400.0,0.00024657,2]
[378155008,1754751039864,-400.0,0.00024657,2]
[378155011,1754751039874,-400.0,0.00024657,2]
[378155013,1754751039883,-400.0,0.00024657,2]
[378155015,1754751039892,-554.95,0.00024657,2]
[378155017,1754751039902,-400.0,0.00024657,2]
[378155019,1754751039912,-417.82,0.00024657,2]
[378155021,1754751039921,-577.37,0.00024657,2]
[378155023,1754751039931,-400.0,0.00024657,2]
[378155025,1754751039940,-400.0,0.00024657,2]
[378155027,1754751039950,-400.0,0.00024657,2]
[378155029,1754751039959,-400.0,0.00024657,2]
[378155032,1754751039969,-400.0,0.00024657,2]
[378155035,1754751039978,-400.0,0.00024657,2]
[378155037,1754751039987,-400.0,0.00024657,2]
[378155039,1754751039997,-400.0,0.00024657,2]
[378155041,1754751040006,-400.0,0.00024657,2]
[378155043,1754751040015,-475.25275011,0.00024657,2]
[378155045,1754751040024,-809.12,0.00024657,2]
[378155047,1754751040033,-905.78,0.00024657,2]
[378155049,1754751040043,-400.0,0.00024657,2]
[378155051,1754751040052,-771.03,0.00024657,2]
[378155052,1754751040061,-400.0,0.00024657,2]
[378155054,1754751040071,-400.0,0.00024657,2]
[378155056,1754751040080,-169.01669397,0.00024657,2]
[378155058,1754751040089,-400.0,0.00024657,2]
[378155060,1754751040098,-400.0,0.00024657,2]
[378155062,1754751040107,-403.81047275,0.00024657,2]
[378155064,1754751040116,-400.0,0.00024657,2]
[378155066,1754751040126,-400.0,0.00024657,2]
[378155068,1754751040135,-400.0,0.00024657,2]
[378155070,1754751040144,-513.29,0.00024657,2]
[378155072,1754751040154,-646.92,0.00024657,2]
[378155074,1754751040163,-400.0,0.00024657,2]
[378155076,1754751040173,-400.0,0.00024657,2]
[378155077,1754751040183,-400.0,0.00024657,2]
[378155078,1754751040192,-400.0,0.00024657,2]
[378155079,1754751040202,-400.0,0.00024657,2]
[378155080,1754751040211,-400.0,0.00024657,2]
[378155081,1754751040221,-400.0,0.00024657,2]
[378155082,1754751040230,-803.25,0.00024657,2]
[378155083,1754751040239,-996.82,0.00024657,2]
[378155084,1754751040248,-400.0,0.00024657,2]
[378155085,1754751040258,-400.0,0.00024657,2]
[378155086,1754751040267,-400.0,0.00024657,2]
[378155087,1754751040276,-400.0,0.00024657,2]
[378155088,1754751040286,-400.0,0.00024657,2]
[378155089,1754751040295,-400.0,0.00024657,2]
[378155090,1754751040305,-400.0,0.00024657,2]
[378155091,1754751040314,-991.53,0.00024657,2]
[378155092,1754751040324,-536.26,0.00024657,2]
[378155093,1754751040334,-199.1,0.00024657,2]
[378155094,1754751040343,-400.0,0.00024657,2]
[378155095,1754751040352,-400.0,0.00024657,2]
[378155096,1754751040362,-400.0,0.00024657,2]
[378155098,1754751040372,-400.0,0.00024657,2]
[378155099,1754751040382,-400.0,0.00024657,2]
[378155101,1754751040392,-400.0,0.00024657,2]
[378155103,1754751040401,-480.62,0.00024657,2]
[378155105,1754751040411,-400.0,0.00024657,2]
[378155107,1754751040421,-1531.81,0.00024657,2]
[378155109,1754751040430,-412.06647846,0.00024657,2]
[378155111,1754751040440,-400.0,0.00024657,2]
[378155113,1754751040449,-481.86,0.00024657,2]
[378155115,1754751040458,-894.66,0.00024657,2]
[378155117,1754751040468,-400.0,0.00024657,2]
[378155119,1754751040477,-824.47,0.00024657,2]
[378155121,1754751040487,-400.0,0.00024657,2]
[378155123,1754751040498,-400.0,0.00024657,2]
[378155125,1754751040507,-400.0,0.00024657,2]
[378155127,1754751040516,-400.0,0.00024657,2]
[378155129,1754751040525,-400.0,0.00024657,2]
[378155131,1754751040535,-400.0,0.00024657,2]
[378155133,1754751040544,-400.0,0.00024657,2]
[378155135,1754751040553,-400.0,0.00024657,2]
[378155137,1754751040562,-400.0,0.00024657,2]
[378155139,1754751040572,-400.0,0.00024657,2]
[378155141,1754751040582,-400.0,0.00024657,2]
[378155143,1754751040591,-400.0,0.00024657,2]
[378155145,1754751040600,-1471.27,0.00024657,2]
[378155147,1754751040609,-400.0,0.00024657,2]
[378155149,1754751040619,-400.0,0.00024657,2]
[378155151,1754751040632,-403.6329811,0.00024657,2]
[378155153,1754751040641,-457.76,0.00024657,2]
[378155155,1754751040650,-527.54,0.00024657,2]
[378155157,1754751040659,-527.24,0.00024657,2]
[378155159,1754751040670,-855.34,0.00024657,2]
[378155161,1754751040680,-595.78,0.00024657,2]
[378155163,1754751040689,-400.0,0.00024657,2]
[378155165,1754751040700,-401.06,0.00024657,2]
[378155167,1754751040710,-582.3,0.00024657,2]
[378155169,1754751040719,-464.18574558,0.00024657,2]
[378155171,1754751040729,-994.75,0.00024657,2]
[378155173,1754751040738,-400.0,0.00024657,2]
[378155175,1754751040747,-636.18,0.00024657,2]
[378155178,1754751040757,-400.0,0.00024657,2]
[378155179,1754751040766,-437.43,0.00024657,2]
[378155182,1754751040775,-400.0,0.00024657,2]
[378155183,1754751040785,-500.0,0.00024657,2]
[378155186,1754751040795,-400.0,0.00024657,2]
[378155188,1754751040804,-400.0,0.00024657,2]
[378155190,1754751040813,-1489.21,0.00024657,2]
[378155192,1754751040822,-320.12814755,0.00024657,2]
[378155250,1754751041359,-888.0,0.00020147,3]
[378155252,1754751041369,-79.87185245,0.00024657,2]
[378155254,1754751041379,-456.9,0.00024657,2]
[378155257,1754751041388,-3209.13,0.00024657,2]
[378155258,1754751041397,-400.0,0.00024657,2]
[378155260,1754751041406,-1009.32545673,0.00024657,2]
[378155265,1754751041442,-1776.0,0.00022387,3]
[378155267,1754751041451,-123.97454327,0.00024657,2]
[378155269,1754751041460,-400.0,0.00024657,2]
[378155271,1754751041470,-400.0,0.00024657,2]
[378155273,1754751041480,-475.3652724,0.00024657,2]
[378155275,1754751041489,-400.0,0.00024657,2]
[378155277,1754751041499,-400.0,0.00024657,2]
[378155279,1754751041508,-400.0,0.00024657,2]
[378155281,1754751041517,-321.80617363,0.00024673,2]
[378155283,1754751041526,-205.25894367,0.00024673,2]
[378155285,1754751041536,-500.0,0.00024673,2]
[378155287,1754751041545,-511.17771888,0.00024673,2]
[378155289,1754751041554,-500.0,0.00024673,2]
[378155291,1754751041563,-501.17371074,0.00024673,2]
[378155293,1754751041572,-500.0,0.00024673,2]
[378155295,1754751041582,-500.0,0.00024673,2]
[378155297,1754751041591,-500.0,0.00024673,2]
[378155299,1754751041600,-506.47182034,0.00024673,2]
[378155301,1754751041609,-164.735868,0.00024673,2]
[378155303,1754751041619,-500.0,0.00024673,2]
[378155305,1754751041630,-367.76226041,0.00024673,2]
[378155308,1754751041642,-132.23773959,0.00024673,2]
[378155310,1754751041651,-500.0,0.00024673,2]
[378155312,1754751041660,-500.0,0.00024673,2]
[378155314,1754751041669,-239.42647886,0.00024673,2]
[378155376,1754751042254,-211.9715899,0.00024656,2]
[378155378,1754751042263,-629.63372711,0.00024656,2]
[378155380,1754751042273,-171.61721796,0.00024656,2]
[378155382,1754751042283,-80.95857257,0.00024656,3]
[378155384,1754751042294,-807.04142743,0.00024656,3]
[378155386,1754751042303,-238.60024779,0.00024656,3]
[378155398,1754751042408,-649.39975221,0.00024656,3]
[378155400,1754751042420,-0.04423087,0.00024656,3]
[378155402,1754751042432,-517.34603854,0.00024656,3]
[378155404,1754751042444,-370.60973059,0.00024656,3]
[378155406,1754751042453,-888.0,0.00024656,3]
[378155408,1754751042463,-53.92329761,0.00024657,2]
[378155410,1754751042473,-347.04670239,0.00024657,2]
[378155412,1754751042483,-260.57352114,0.00024673,2]
[378155414,1754751042492,-500.0,0.00024673,2]
[378155416,1754751042501,-87.83220953,0.00024673,2]
[378155420,1754751042528,-527.35315316,0.00024673,2]
[378155422,1754751042538,-500.0,0.00024673,2]
[378155424,1754751042547,-500.0,0.00024673,2]
[378155426,1754751042557,-2992.2,0.00024685,30]
[378155428,1754751042567,-415.2925,0.00024799,2]
[378155430,1754751042576,-1090.35434684,0.000248,2]
[378155433,1754751042591,-342.96293396,0.000248,2]
[378155435,1754751042603,-2133.0625596,0.000248,2]
[378155462,1754751042839,-428.25505818,0.00024656,3]
[378155465,1754751042851,-459.74494182,0.00024656,3]
[378155466,1754751042860,-888.0,0.00024656,3]
[378155468,1754751042869,-546.262796,0.000248,2]
[378155470,1754751042880,-1353.2999999,0.000248,2]
[378155472,1754751042896,-617.30298195,0.00024656,3]
[378155475,1754751042907,-270.69701805,0.00024656,3]
[378155476,1754751042919,-4209.37683115,0.000248,2]
[378155624,1754751046304,-888.0,0.00020647,3]
[378155625,1754751046314,-1776.0,0.00022887,3]
[378155626,1754751046323,-400.0,0.00024657,2]
[378155627,1754751046332,-400.0,0.00024657,2]
[378155628,1754751046341,-4148.35,0.00024657,2]
[378155629,1754751046350,-421.05,0.00024657,2]
[378155630,1754751046359,-40260.39821245,0.000248,2]
[378155631,1754751046369,-192.61,0.00024838,2]
[378155632,1754751046378,-24967.85884,0.00024884,2]
[378155633,1754751046387,-160.0,0.0002489,2]
[378155634,1754751046396,-211.66152043,0.0002489,2]
[378155635,1754751046406,-457.70825493,0.0002489,2]
[378155636,1754751046415,-842.55686218,0.00024891,2]
[378155637,1754751046426,-200.0,0.00024894,2]
[378155638,1754751046435,-24967.85884,0.00024911,2]
[378155639,1754751046444,-500.0,0.00024912,2]
[378155640,1754751046453,-500.0,0.00024912,2]
[378155641,1754751046463,-400.0,0.0002492,2]
[378155642,1754751046472,-875.76,0.0002492,2]
[378155643,1754751046481,-723.19,0.0002492,2]
[378155644,1754751046491,-222.61703095,0.0002492,2]
[378155645,1754751046500,-467.51,0.0002492,2]
[378155646,1754751046509,-500.0,0.0002492,2]
[378155647,1754751046518,-1116.87,0.0002492,2]
[378155648,1754751046527,-679.62,0.0002492,2]
[378155649,1754751046536,-662.7,0.0002492,2]
[378155650,1754751046545,-450.84,0.0002492,2]
[378155651,1754751046555,-830.03,0.0002492,2]
[378155652,1754751046563,-656.19,0.0002492,2]
[378155653,1754751046573,-867.6,0.0002492,2]
[378155654,1754751046581,-869.83,0.0002492,2]
[378155655,1754751046591,-817.26110092,0.0002492,2]
[378155656,1754751046603,-1419.79889908,0.0002492,2]
[378155657,1754751046612,-423.19,0.0002492,2]
[378155658,1754751046622,-668.84,0.0002492,2]
[378155659,1754751046633,-400.0,0.0002492,2]
[378155660,1754751046644,-400.0,0.0002492,2]
[378155661,1754751046654,-1023.53,0.0002492,2]
[378155662,1754751046663,-400.0,0.0002492,2]
[378155663,1754751046672,-149807.15304,0.00024921,2]
[378155664,1754751046683,-550.0,0.00024921,9]
[378155665,1754751046692,-550.0,0.00024921,9]
[378155666,1754751046701,-550.0,0.00024921,9]
[378155667,1754751046711,-550.0,0.00024921,9]
[378155668,1754751046721,-550.0,0.00024921,9]
[378155669,1754751046730,-550.0,0.00024921,9]
[378155670,1754751046739,-550.0,0.00024921,9]
[378155671,1754751046749,-550.0,0.00024921,9]
[378155672,1754751046758,-550.0,0.00024923,9]
[378155673,1754751046767,-550.0,0.00024923,9]
[378155674,1754751046776,-550.0,0.00024923,9]
[378155675,1754751046785,-550.0,0.00024923,9]
[378155676,1754751046794,-550.0,0.00024923,9]
[378155677,1754751046803,-550.0,0.00024923,9]
[378155678,1754751046812,-550.0,0.00024923,9]
[378155679,1754751046821,-550.0,0.00024923,9]
[378155680,1754751046830,-500.0,0.0002493,2]
[378155681,1754751046839,-500.0,0.0002493,2]
[378155682,1754751046848,-767.43,0.0002493,4]
[378155683,1754751046857,-500.0,0.0002493,2]
[378155684,1754751046866,-337.35173437,0.00024931,2]
[378155685,1754751046875,-400.0,0.00024931,2]
[378155686,1754751046884,-160.67,0.00024931,2]
[378155687,1754751046893,-400.0,0.00024931,2]
[378155688,1754751046902,-400.0,0.00024931,2]
[378155689,1754751046911,-400.0,0.00024931,2]
[378155690,1754751046920,-400.0,0.00024931,2]
[378155691,1754751046929,-388.59330931,0.00024931,2]
[378155692,1754751046939,-400.0,0.00024931,2]
[378155708,1754751047077,-412.32,0.00024931,2]
[378155709,1754751047087,-400.0,0.00024931,2]
[378155710,1754751047097,-593.1,0.00024931,2]
[378155711,1754751047106,-373.43884832,0.00024931,2]
[378155712,1754751047115,-400.0,0.00024931,2]
[378155713,1754751047125,-400.0,0.00024931,2]
[378155714,1754751047134,-400.0,0.00024931,2]